Workbook

Sheet 改定料金
A1: 由布市水道料金 現行料金と改定料金との比較
A2: ※オレンジ色のところに数字を入れることで、改正料金がいくらになるか計算ができます。
A3: １.使用水量を入力してください。
B4: 20 | F4: ㎥
A7: ２.用途を右の表から選び、数字を入力してください。
B9: 10 | D9: =VLOOKUP(B9,Sheet1!H7:I14,2,0) -> 挾間庄内地域 一般家庭用 | O9: ２.用途を入力
O10: 10 挾間庄内地域 一般家庭用
O11: 20 挾間庄内地域 官公署学校用
A12: ３.量水器（メーター）口径を入力 | O12: 30 挾間庄内地域 事業所
B13: してください。 | O13: 11 湯布院地域 一般用
B14: Φ | D14: 20 | O14: 21 湯布院地域 営業用
A19: メーター口径 | E19: =VLOOKUP(D14,Sheet1!$H$20:$I$28,2,0) -> Φ ２０ | K19: 現行用途 | P19: =VLOOKUP(B9,Sheet1!$H$7:$I$17,2,0) -> 挾間庄内地域 一般家庭用
U20: 消費税込み
A21: 使用水量 | G21: =+B4 -> 20 | J21: ㎥ | L21: 水道料金 | T21: 左水道料金のうち 基本料金の金額
A22: 現行の水道料金 | L22: =+Sheet1!F7 -> 3030 | U22: =+Sheet1!F8 -> 1320 | X22: 円
A24: 差額 | L24: =+L25-L22 -> 490 | U24: =+U25-U22 -> -110 | X24: 円
A25: 改定後の水道料金 | L25: =+Sheet1!F9 -> 3520 | U25: =+Sheet1!F10 -> 1210 | X25: 円
A26: 改定率 | L26: =+L25/L22-1 -> 0.1617161716
A28: 激変緩和措置 （令和5年12月以降、継続使用の方が対象） | L28: 水道料金 | R28: 前年との 増加額 | V28: 備考
A29: 令和６年２月検針分～令和７年3月 1.15倍以内（最低料金：基本料金の1/5） | L29: =+Sheet1!D15 -> 3480 | R29: =+L29-L22 -> 450 | V29: =IF(L29=L25,"緩和措置なし",IF(ROUNDDOWN(U25*1/5,-1)=L29,"基本料金の1/5","1.15倍を上限")) -> 1.15倍を上限 | AD29: =+Sheet1!E15 -> 1.15倍を上限
A30: 令和７年4月検針分～令和８年3月 1.30倍以内（最低料金：基本料金の2/5） | L30: =+Sheet1!D16 -> 3520 | R30: =+L30-L29 -> 40 | V30: =IF(L30=L25,"緩和措置なし",IF(ROUNDDOWN(U25*2/5,-1)=L30,"基本料金の2/5","1.30倍を上限")) -> 緩和措置なし | AD30: =+Sheet1!E16 -> 1.30倍を上限
A31: 令和８年4月検針分～令和９年3月 1.45倍以内（最低料金：基本料金の3/5） | L31: =+Sheet1!D17 -> 3520 | R31: =+L31-L30 -> 0 | V31: =IF(L31=L25,"緩和措置なし",IF(ROUNDDOWN(U25*3/5,-1)=L31,"基本料金の3/5","1.45倍を上限")) -> 緩和措置なし | AD31: =+Sheet1!E17 -> 1.45倍を上限
A32: 令和９年4月検針分～令和10年3月 1.60倍以内（最低料金：基本料金の4/5） | L32: =+Sheet1!D18 -> 3520 | R32: =+L32-L31 -> 0 | V32: =IF(L32=L25,"緩和措置なし",IF(ROUNDDOWN(U25*4/5,-1)=L32,"基本料金の4/5","1.60倍を上限")) -> 緩和措置なし | AD32: =+Sheet1!E18 -> 1.60倍を上限
A33: 令和10年4月検針分～ | L33: =+Sheet1!D19 -> 3520 | R33: =+L33-L32 -> 0

Sheet Sheet1
A2: 用途 | B2: =+改定料金!B9 -> 10
A3: 口径 | B3: =+改定料金!D14 -> 20
A4: 水量 | B4: =+改定料金!B4 -> 20 | C4: =IF(B4-Sheet1!AB12=0,"OK ","数式エラー") -> OK
H5: 1 | I5: 2 | J5: 3 | K5: 4 | L5: 5 | AC5: 1 | AD5: 2 | AE5: 3 | AF5: 4 | AG5: 5 | AH5: 6 | AI5: 7 | AJ5: 8 | AK5: 9
C6: 税抜き料金 | D6: 消費税 | E6: 税込み料金 | F6: 端数処理後 | H6: 番号 | I6: 用途（現行） | J6: 基本料金 | K6: 水量 | L6: 金額 | M6: 基本水量 | P6: Φ13 | Q6: Φ20 | R6: Φ25 | S6: Φ30 | T6: Φ40 | U6: Φ50 | V6: Φ75 | W6: Φ100 | X6: Φ150 | AB6: ㎥ | AC6: Φ13 | AD6: Φ20 | AE6: Φ25 | AF6: Φ30 | AG6: Φ40 | AH6: Φ50 | AI6: Φ75 | AJ6: Φ100 | AK6: Φ150
A7: 現行の水道料金 | B7: =VLOOKUP(B2,$H$7:$L$17,5,0) -> 2750 | C7: =+B7 -> 2750 | D7: =+C7*0.1 -> 275 | E7: =+C7+D7 -> 3025 | F7: =ROUND(E7,-1) -> 3030 | H7: 10 | I7: 挾間庄内地域 一般家庭用 | J7: 1200 | K7: =IF(155*(B4-10)>=0,155*(B4-10),0) -> 1550 | L7: =+J7+K7 -> 2750 | M7: 基本水量10㎥ | O7: 0㎥～ 10㎥ | P7: 50 | Q7: 50 | R7: 50 | S7: 160 | T7: 160 | U7: 160 | V7: 160 | W7: 160 | X7: 160 | Z7: 改正後料金 | AC7: =SUM(AC8:AC22) -> 2100 | AD7: 2100 | AE7: 2100 | AF7: 3300 | AG7: 3300 | AH7: 3300 | AI7: 3300 | AJ7: 3300 | AK7: 3300
A8: 現行の基本料金 | B8: =VLOOKUP(B2,$H$7:$L$17,3,0) -> 1200 | C8: =+B8 -> 1200 | D8: =+C8*0.1 -> 120 | E8: =+C8+D8 -> 1320 | F8: =ROUND(E8,-1) -> 1320 | H8: 20 | I8: 挾間庄内地域 官公署学校用 | J8: 0 | K8: =205*B4 -> 4100 | L8: =+J8+K8 -> 4100 | M8: 基本水量 無 | O8: 11㎥～100㎥ | P8: 160 | Q8: 160 | R8: 160 | S8: 170 | T8: 170 | U8: 170 | V8: 170 | W8: 170 | X8: 170 | Z8: 0㎥～ 10㎥ | AA8: =IF(Sheet1!B4>10,10,Sheet1!B4-0) -> 10 | AB8: =IF(AA8>=0,AA8,0) -> 10 | AC8: =$AB8*P7 -> 500 | AD8: =$AB$8*Q7 -> 500 | AE8: 500 | AF8: 1600 | AG8: 1600 | AH8: 1600 | AI8: 1600 | AJ8: 1600 | AK8: 1600
A9: 改正の水道料金 | B9: =VLOOKUP(B3,$H$20:$L$28,5,0) -> 3200 | C9: 3200 | D9: =+C9*0.1 -> 320 | E9: =+C9+D9 -> 3520 | F9: =ROUNDDOWN(E9,-1) -> 3520 | H9: 30 | I9: 挾間庄内地域 事業所 | J9: 0 | K9: =205*B4 -> 4100 | L9: 4100 | M9: 基本水量 無 | O9: 101㎥～ | P9: 180 | Q9: 180 | R9: 180 | S9: 180 | T9: 180 | U9: 180 | V9: 180 | W9: 180 | X9: 180 | Z9: 11㎥～100㎥ | AA9: =IF(Sheet1!$B$4>100,90,Sheet1!$B$4-10) -> 10 | AB9: 10 | AC9: =$AB$9*P8 -> 1600 | AD9: 1600 | AE9: 1600 | AF9: 1700 | AG9: 1700 | AH9: 1700 | AI9: 1700 | AJ9: 1700 | AK9: 1700
A10: 改正の基本料金 | B10: =VLOOKUP(B3,$H$20:$L$28,3,0) -> 1100 | C10: 1100 | D10: =+C10*0.1 -> 110 | E10: 1210 | F10: 1210 | I10: 挾間庄内地域 共用 | J10: 0 | K10: =180*B4 -> 3600 | L10: 3600 | M10: 基本水量 無 | Z10: 101㎥～ | AA10: =Sheet1!$B$4-100 -> -80 | AB10: =IF(AA10>=0,AA10,0) -> 0 | AC10: =$AB$10*P9 -> 0 | AD10: 0 | AE10: 0 | AF10: 0 | AG10: 0 | AH10: 0 | AI10: 0 | AJ10: 0 | AK10: 0
A11: 改定率 | B11: =+B9/B7-1 -> 0.1636363636 | H11: 11 | I11: 湯布院地域 一般用 | J11: 850 | K11: =IF(100*(B4-10)>=0,100*(B4-10),0) -> 1000 | L11: =+J11+K11 -> 1850 | M11: 基本水量10㎥
H12: 21 | I12: 湯布院地域 営業用 | J12: 850 | K12: =IF(100*(B4-10)>=0,100*(B4-10),0) -> 1000 | L12: 1850 | M12: 基本水量10㎥ | Z12: ㎥合計 | AB12: =SUM(AB8:AB10) -> 20
H13: 31 | I13: 湯布院地域 浴場営業用 | J13: 850 | K13: =IF(100*(B4-10)>=0,100*(B4-10),0) -> 1000 | L13: 1850 | M13: 基本水量10㎥
A14: 緩和措置 | C14: 税込み料金 | D14: 端数処理後 | H14: 41 | I14: 湯布院地域 共用給水 | J14: 850 | K14: =IF(100*(B4-10)>=0,100*(B4-10),0) -> 1000 | L14: 1850 | M14: 基本水量10㎥
A15: 1.15 | B15: =IF($F$7*A15<$F$9,$F$7*A15,$F$9) -> 3484.5 | C15: =IF(B15<E10/5,E10/5,B15) -> 3484.5 | D15: =ROUNDDOWN(C15,-1) -> 3480 | E15: =IF(B15<E10/5,"基本料金の1/5","1.15倍を上限") -> 1.15倍を上限 | I15: 挾間庄内地域 臨時用－緊急用 | J15: 0 | K15: =350*B4 -> 7000 | L15: 7000 | M15: 0
A16: 1.3 | B16: =IF($F$7*A16<$F$9,$F$7*A16,$F$9) -> 3520 | C16: =IF(B16<E10*2/5,E10*2/5,B16) -> 3520 | D16: =ROUNDDOWN(C16,-1) -> 3520 | E16: =IF(B16<E10*2/5,"基本料金の2/5","1.30倍を上限") -> 1.30倍を上限 | I16: 挾間庄内地域 臨時用－施設用 | J16: 0 | K16: =600*B4 -> 12000 | L16: 12000 | M16: 0
A17: 1.45 | B17: =IF($F$7*A17<$F$9,$F$7*A17,$F$9) -> 3520 | C17: =IF(B17<E10*3/5,E10*3/5,B17) -> 3520 | D17: =ROUNDDOWN(C17,-1) -> 3520 | E17: =IF(B17<E10*3/5,"基本料金の3/5","1.45倍を上限") -> 1.45倍を上限 | I17: 湯布院地域 臨時用 | J17: 850 | K17: =IF(200*(B4-10)>=0,200*(B4-10),0) -> 2000 | L17: 2850 | M17: 0
A18: 1.6 | B18: =IF($F$7*A18<$F$9,$F$7*A18,$F$9) -> 3520 | C18: =IF(B18<E10*4/5,E10*4/5,B18) -> 3520 | D18: =ROUNDDOWN(C18,-1) -> 3520 | E18: =IF(B18<E10*4/5,"基本料金の4/5","1.60倍を上限") -> 1.60倍を上限
A19: ５年目 | B19: =+F9 -> 3520 | C19: =+B19 -> 3520 | D19: =ROUNDDOWN(C19,-1) -> 3520 | H19: 番号 | I19: 口径（改正後） | J19: 基本料金 | K19: 水量 | L19: 金額
H20: 13 | I20: Φ １３ | J20: 900 | K20: =+Sheet1!AC7 -> 2100 | L20: =+J20+K20 -> 3000
H21: 20 | I21: Φ ２０ | J21: 1100 | K21: =+Sheet1!AD7 -> 2100 | L21: 3200
H22: 25 | I22: Φ ２５ | J22: 1700 | K22: =+Sheet1!AE7 -> 2100 | L22: 3800
H23: 30 | I23: Φ ３０ | J23: 2600 | K23: =+Sheet1!AF7 -> 3300 | L23: 5900
H24: 40 | I24: Φ ４０ | J24: 4400 | K24: =+Sheet1!AG7 -> 3300 | L24: 7700
H25: 50 | I25: Φ ５０ | J25: 6000 | K25: =+Sheet1!AH7 -> 3300 | L25: 9300
H26: 75 | I26: Φ ７５ | J26: 11800 | K26: =+Sheet1!AI7 -> 3300 | L26: 15100
H27: 100 | I27: Φ１００ | J27: 26000 | K27: =+Sheet1!AJ7 -> 3300 | L27: 29300
H28: 150 | I28: Φ１５０ | J28: 46700 | K28: =+Sheet1!AK7 -> 3300 | L28: 50000
A34: 用途 | B34: =+#REF! -> 
A35: 口径 | B35: =+#REF! -> 
A36: 水量 | B36: =+#REF! ->  | C36: =IF(B36-Sheet1!AB44=0,"OK ","数式エラー") -> 
H37: 1 | I37: 2 | J37: 3 | K37: 4 | L37: 5 | AC37: 1 | AD37: 2 | AE37: 3 | AF37: 4 | AG37: 5 | AH37: 6 | AI37: 7 | AJ37: 8 | AK37: 9
C38: 税抜き料金 | D38: 消費税 | E38: 税込み料金 | F38: 端数処理後 | H38: 番号 | I38: 用途（現行） | J38: 基本料金 | K38: 水量 | L38: 金額 | M38: 緩和措置適用 | P38: Φ13 | Q38: Φ20 | R38: Φ25 | S38: Φ30 | T38: Φ40 | U38: Φ50 | V38: Φ75 | W38: Φ100 | X38: Φ150 | AB38: ㎥ | AC38: Φ13 | AD38: Φ20 | AE38: Φ25 | AF38: Φ30 | AG38: Φ40 | AH38: Φ50 | AI38: Φ75 | AJ38: Φ100 | AK38: Φ150
A39: 現行の水道料金 | B39: =VLOOKUP(B34,$H$39:$L$49,5,0) ->  | C39: =+B39 ->  | D39: =+C39*0.1 ->  | E39: =+C39+D39 ->  | F39: =ROUND(E39,-1) ->  | H39: 10 | I39: 挾間庄内地域 一般家庭用 | J39: 1200 | K39: =IF(155*(B36-10)>=0,155*(B36-10),0) ->  | L39: =+J39+K39 ->  | M39: 1 | O39: 0㎥～ 10㎥ | P39: 50 | Q39: 50 | R39: 50 | S39: 160 | T39: 160 | U39: 160 | V39: 160 | W39: 160 | X39: 160 | Z39: 改正後料金 | AC39: =SUM(AC40:AC54) -> 
A40: 現行の基本料金 | B40: =VLOOKUP(B34,$H$39:$L$49,3,0) ->  | C40: =+B40 ->  | D40: =+C40*0.1 ->  | E40: =+C40+D40 ->  | F40: =ROUND(E40,-1) ->  | H40: 20 | I40: 挾間庄内地域 官公署学校用 | J40: 0 | K40: =205*B36 ->  | L40: =+J40+K40 ->  | M40: 1 | O40: 11㎥～100㎥ | P40: 160 | Q40: 160 | R40: 160 | S40: 170 | T40: 170 | U40: 170 | V40: 170 | W40: 170 | X40: 170 | Z40: 0㎥～ 10㎥ | AA40: =IF(Sheet1!B36>10,10,Sheet1!B36-0) ->  | AB40: =IF(AA40>=0,AA40,0) ->  | AC40: =$AB40*P39 ->  | AD40: =$AB40*Q39 -> 
A41: 改正の水道料金 | B41: =VLOOKUP(B35,$H$52:$L$60,5,0) ->  | D41: =+C41*0.1 ->  | E41: =+C41+D41 ->  | F41: =ROUNDDOWN(E41,-1) ->  | H41: 30 | I41: 挾間庄内地域 事業所 | J41: 0 | K41: =205*B36 ->  | M41: 1 | O41: 101㎥～ | P41: 180 | Q41: 180 | R41: 180 | S41: 180 | T41: 180 | U41: 180 | V41: 180 | W41: 180 | X41: 180 | Z41: 11㎥～100㎥ | AA41: =IF(Sheet1!$B$36>100,90,Sheet1!$B$36-10) ->  | AC41: =$AB$41*P40 -> 
A42: 改正の基本料金 | B42: =VLOOKUP(B35,$H$20:$L$28,3,0) ->  | D42: =+C42*0.1 ->  | F42: =ROUNDDOWN(E42,-1) ->  | H42: 40 | I42: 挾間庄内地域 共用 | J42: 0 | K42: =180*B36 ->  | M42: 1 | Z42: 101㎥～ | AA42: =Sheet1!$B$36-100 ->  | AB42: =IF(AA42>=0,AA42,0) ->  | AC42: =$AB$42*P41 ->  | AD42: =$AB$42*Q41 ->  | AE42: =$AB$42*R41 -> 
A43: 改定率 | B43: =+B41/B39-1 ->  | H43: 11 | I43: 湯布院地域 一般用 | J43: 850 | K43: =IF(100*(B36-10)>=0,100*(B36-10),0) ->  | M43: 1
H44: 21 | I44: 湯布院地域 営業用 | J44: 850 | K44: =IF(100*(B36-10)>=0,100*(B36-10),0) ->  | M44: 1 | Z44: ㎥合計 | AB44: =SUM(AB40:AB42) -> 
H45: 31 | I45: 湯布院地域 浴場営業用 | J45: 850 | K45: =IF(100*(B36-10)>=0,100*(B36-10),0) ->  | M45: 1
A46: 緩和措置 | C46: 税込み料金 | D46: 端数処理後 | H46: 41 | I46: 湯布院地域 共用給水 | J46: 850 | K46: =IF(100*(B36-10)>=0,100*(B36-10),0) ->  | M46: 1
A47: 1.15 | B47: =IF($F$39*A47<$F$41,$F$39*A47,$F$41) ->  | C47: =IF(B47<B42/5,B42/5,B47) ->  | D47: =ROUNDDOWN(C47,-1) ->  | I47: 挾間庄内地域 臨時用－緊急用 | J47: 0 | K47: =350*B36 ->  | M47: 0
A48: 1.3 | B48: =IF($F$39*A48<$F$41,$F$39*A48,$F$41) ->  | C48: =IF(B48<B42*2/5,B42*2/5,B48) ->  | D48: =ROUNDDOWN(C48,-1) ->  | I48: 挾間庄内地域 臨時用－施設用 | J48: 0 | K48: =600*B36 ->  | M48: 0
A49: 1.45 | C49: =IF(B49<B42*3/5,B42*3/5,B49) ->  | I49: 湯布院地域 臨時用 | J49: 850 | K49: =IF(200*(B36-10)>=0,200*(B36-10),0) ->  | M49: 0
A50: 1.6 | C50: =IF(B50<B42*4/5,B42*4/5,B50) -> 
A51: ５年目 | B51: =+F41 ->  | C51: =+B51 ->  | D51: =ROUNDDOWN(C51,-1) ->  | H51: 番号 | I51: 口径（改正後） | J51: 基本料金 | K51: 水量 | L51: 金額
H52: 13 | I52: Φ １３ | J52: 900 | K52: =+Sheet1!AC39 ->  | L52: =+J52+K52 -> 
H53: 20 | I53: Φ ２０ | J53: 1100 | K53: =+Sheet1!AD39 -> 
H54: 25 | I54: Φ ２５ | J54: 1700 | K54: =+Sheet1!AE39 -> 
H55: 30 | I55: Φ ３０ | J55: 2600 | K55: =+Sheet1!AF39 -> 
H56: 40 | I56: Φ ４０ | J56: 4400 | K56: =+Sheet1!AG39 -> 
H57: 50 | I57: Φ ５０ | J57: 6000 | K57: =+Sheet1!AH39 -> 
H58: 75 | I58: Φ ７５ | J58: 11800 | K58: =+Sheet1!AI39 -> 
H59: 100 | I59: Φ１００ | J59: 26000 | K59: =+Sheet1!AJ39 -> 
H60: 150 | I60: Φ１５０ | J60: 46700 | K60: =+Sheet1!AK39 -> 
H63: 10
H64: 11
